Cogmind - Beta 15 @@@ ROGUE MODE // 2025.10.03 @ 19:53:08 Player: icculus Result: Destroyed by Y-45 Defender with Heavy Assault Rifle Performance ------------- Evolutions (0) 0 Regions Visited (2) 400 Robots Destroyed (19) 95 Value Destroyed (444) 444 Prototype IDs (2) 40 Alien Tech Used (0) 0 Bonus (-60) -60 TOTAL SCORE: 919 Bonus ------- Friendly Fire -60 Cogmind --------- Core Integrity 0/250 Matter 288/300 Energy 200/200 System Corruption 0% Temperature Cool (9) Movement Rolling (110) Location -10/Subcaves Parts ------- > --- POWER (1) -------- Subdweller Power Source > --- PROPULSION (2) --- Subdweller Monowheel Subdweller Monowheel > --- UTILITY (2) ------ Large Storage Unit Terrain Scanner > --- WEAPON (2) ------- Subdweller Laser Subdweller Machine Gun > --- INVENTORY (15) --- Subdweller Power Source Aluminum Leg Aluminum Leg Subdweller Monowheel Improved Heat Sink Disposable Heat Sink Large Matter Pod (150) Subdweller Optics Scrap Shield Subdweller Laser Subdweller Laser Beamcaster Subdweller Machine Gun Datajack Peak State ------------ > --- POWER ------------ Subdweller Power Source > --- PROPULSION ------- Subdweller Monowheel Subdweller Monowheel > --- UTILITY ---------- Large Storage Unit Subdweller Optics > --- WEAPON ----------- Subdweller Laser Subdweller Machine Gun > --- INVENTORY -------- Ion Engine Aluminum Leg Aluminum Leg Subdweller Monowheel Disposable Heat Sink Medium Storage Unit Small Matter Pod Large Matter Pod Terrain Scanner Scrap Shield Subdweller Laser Subdweller Laser Subdweller Machine Gun Datajack [Rating: 15] Favorites ----------- Power Ion Engine Engine Ion Engine Propulsion Aluminum Leg Leg Aluminum Leg Wheel Subdweller Monowheel Utility Terrain Scanner Device Terrain Scanner Storage Large Storage Unit Weapon Assault Rifle Energy Gun Small Laser Ballistic Gun Assault Rifle Build | -11 -10 -10 ------- Run | Yrd Mat Sub Slots Evolved . | . . . Power . | . . . Propulsion . | . . . Utility . | . . . Weapon . | . . . Parts Attached 22 | 6 9 7 Power 4 | 1 2 1 Engine 4 | 1 2 1 Core . | . . . Reactor . | . . . Propulsion 6 | 2 1 3 Treads . | . . . Leg 4 | 2 1 1 Wheel 2 | . . 2 Hover . | . . . Flight . | . . . Utility 5 | 1 3 1 Device 3 | 1 1 1 Storage 2 | . 2 . Processor . | . . . Hackware . | . . . Protection . | . . . Artifact . | . . . Weapon 7 | 2 3 2 Energy Gun 2 | . 1 1 Energy Cannon . | . . . Ballistic Gun 5 | 2 2 1 Ballistic Cannon . | . . . Launcher . | . . . Special Weapon . | . . . Impact Weapon . | . . . Slashing Weapon . | . . . Piercing Weapon . | . . . Special Melee Weapon . | . . . Unidentified Prototypes . | . . . Parts Lost 2 | . 1 1 Power 1 | . 1 . Propulsion 1 | . . 1 Utility . | . . . Weapon . | . . . Highest Loss Streak 1 | . 1 1 To Critical Strikes . | . . . Average Backups 9 | 2 6 13 Power . | . . 1 Propulsion 2 | 1 2 3 Utility 2 | . . 4 Weapon 3 | . 2 3 Tool/Special . | . . . Unused Backups 23 | . 3 20 Power 2 | . . 2 Propulsion 6 | . 2 4 Utility 5 | . . 5 Weapon 9 | . 1 8 Tool/Special 1 | . . 1 Average Slot Usage (%) 97 | . 96 99 Engine 13 | . 13 14 Leg 20 | . 28 11 Wheel 7 | . . 16 Device 14 | . 15 14 Storage 11 | . 8 14 Energy Gun 11 | . 8 14 Ballistic Gun 16 | . 19 14 Peak Build Rating 15 | 6 8 15 Average Rating 8 | 3 6 12 On Entrance 4 | . 6 8 Naked Turns . | . . . Heaviest Build 35 | 8 29 35 Greatest Support 40 | 20 20 40 Greatest Overweight (x) 2 | . 2 1 Average Overweight (x) . | . . . Largest Inventory Capacity 15 | 5 15 15 Average Capacity 10 | 5 8 15 Most Carried 15 | 5 13 15 Average Carried 9 | 2 6 14 Final Capacity 15 | 5 15 15 Final Carried 15 | 5 13 15 Class Distribution -------------------- 79% | Scavenger-Mutant 20% | Mutant Dominant Class ---------------- Scavenger-Mutant | -10/Materials Scavenger-Mutant | -10/Subcaves Resources | -11 -10 -10 ----------- Run | Yrd Mat Sub Matter Collected 893 | 266 392 235 Remotely . | . . . Salvage Created 601 | 39 493 69 Parts 39 | 3 31 5 Haulers Intercepted . | . . . Recyclers Shooed 2 | . 2 . Parts Field Recycled . | . . . Retrieved Matter . | . . . Parts Self-Destructed . | . . . Prevented . | . . . Kills | -11 -10 -10 ------- Run | Yrd Mat Sub Combat Hostiles Destroyed 15 | 1 12 2 Guns 15 | 1 12 2 Classes Destroyed 6 | 1 4 1 Builder 1 | . 1 . Recycler 1 | . 1 . Watcher 2 | . 2 . Swarmer 6 | . 6 . Grunt 7 | 1 6 . Subdweller 2 | . . 2 Best Kill Streak 5 | 1 5 2 Combat Bots Only 4 | 1 4 2 Max Kills in Single Turn 2 | 1 2 1 Gunslinging 1 | . 1 . Exploded . | . . . Melee . | . . . Uniques/NPCs Destroyed . | . . . Combat | -11 -10 -10 -------- Run | Yrd Mat Sub Hostile Shots Fired 101 | 1 79 21 Missed 22 | . 16 6 Hits 79 | 1 63 15 Projectile 79 | 1 63 15 Critical Strikes 2 | . . 2 Damage Taken 924 | 10 585 329 Core 251 | . 135 116 Absorbed by Shields . | . . . Core Remaining (%) 100 | 100 . . Volleys Fired 65 | 1 50 14 Largest 2 | 2 2 2 Hottest 90 | 40 60 90 Shots Fired 130 | 2 100 28 Gun 130 | 2 100 28 Cannon . | . . . Launcher . | . . . Special . | . . . Kinetic 111 | 2 95 14 Thermal 19 | . 5 14 Explosive . | . . . Electromagnetic . | . . . Robot Hit Streak 7 | 1 7 4 Robot Miss Streak 4 | 1 4 2 Penetration Max . | . . . Secondary Targets 1 | . 1 . Max Gunslinging Chain 1 | . 1 . Shots Hit Robots 75 | 1 55 19 Core Hits 32 | 1 25 6 Critical Kills . | . . . Critical Parts Destroyed 1 | . . 1 Critical Strikes 1 | . . 1 Destroy 1 | . . 1 Melee Attacks . | . . . Impact . | . . . Slashing . | . . . Piercing . | . . . Sneak Attacks . | . . . Combat Hostiles . | . . . Follow-up Attacks . | . . . Damage Inflicted 1001 | 15 679 307 Guns 999 | 15 677 307 Cannons . | . . . Explosions . | . . . Melee . | . . . Ramming 2 | . 2 . Kinetic 818 | 15 643 160 Thermal 181 | . 34 147 Explosive . | . . . Electromagnetic . | . . . Impact . | . . . Slashing . | . . . Piercing . | . . . Highest Corruption . | . . . Average Corruption . | . . . Corruption Purged . | . . . Corruption Blocked . | . . . Overload Shots . | . . . Overflow Damage . | . . . Projectiles . | . . . Explosions . | . . . Melee . | . . . Knockbacks . | . . . Impact . | . . . Kinetic . | . . . Secondary . | . . . Self-Inflicted Damage . | . . . Shots . | . . . Rammed . | . . . Targets Rammed 1 | . 1 . Kicked 1 | . 1 . Crushed . | . . . Highest Temperature 30 | . 30 . Average Temperature 18 | . 18 . Received Heat Transfer 219 | 6 162 51 Siege Activations . | . . . Martial Activations . | . . . Shielding Activations . | . . . Robots Disrupted . | . . . Combat Hostiles . | . . . Robots Corrupted . | . . . Combat Hostiles . | . . . Parts Fried . | . . . Impact Corruptions . | . . . Robots Melted . | . . . Combat Hostiles . | . . . Parts Melted 2 | . . 2 Heat Transferred 375 | . 75 300 Parts Sabotaged . | . . . Parts Stolen . | . . . Parts Stripped . | . . . Power Chain Reactions . | . . . Alert | -11 -10 -10 ------- Run | Yrd Mat Sub Maximum Alert Level . | . . . Low Security (%) 100 | 100 100 . Level 1 . | . . . Level 2 . | . . . Level 3 . | . . . Level 4 . | . . . Level 5 . | . . . High Security . | . . . Max Security . | . . . Peak Influence 194 | 20 194 . Initial 6 | . 6 . Average 72 | 1 79 . Influence Increases 380 | 20 360 . Destroy 0b10 Robot/C 260 | 20 240 . Destroy 0b10 Robot/NC 20 | . 20 . Destroy Leader 44 | . 44 . Successful Hack 9 | . 9 . Disable Machine 15 | . 15 . Destroy Structure 2 | . 2 . Lose Combat Pursuer 30 | . 30 . Influence Decreases 380 | 10 347 23 Entered New Map 16 | . 4 12 Time Decay 354 | 10 333 11 Lost Part 10 | . 10 . Squads Dispatched 1 | . 1 . Investigation . | . . . Extermination . | . . . Reinforcement 1 | . 1 . Assault . | . . . Garrison . | . . . Intercept . | . . . Searches Triggered . | . . . Construction Impeded . | . . . Haulers Reinforced . | . . . Active Scanning Responses . | . . . Cargo Convoy Interrupts . | . . . Stealth | -11 -10 -10 --------- Run | Yrd Mat Sub Distress Signals 2 | . 2 . Communications Jammed . | . . . Distress Signals . | . . . Times Spotted 35 | 1 20 14 Peak Tracking Total 7 | 1 4 7 Tactical Retreats 2 | . 2 . Traps | -11 -10 -10 ------- Run | Yrd Mat Sub Traps Triggered 1 | . 1 . Indirectly . | . . . Trap Hack Attempts . | . . . Triggered . | . . . Disarmed . | . . . Reprogrammed . | . . . Reused . | . . . Traps Extracted . | . . . Installed . | . . . Triggered . | . . . Machines | -11 -10 -10 ---------- Run | Yrd Mat Sub Machines Disabled 1 | . 1 . Max in Single Turn 1 | . 1 . Machines Repaired . | . . . Machines Dismantled . | . . . Machines Sabotaged . | . . . Overloaded Fab Kills . | . . . Hacking | -11 -10 -10 --------- Run | Yrd Mat Sub Machines Accessed 7 | . 5 2 Terminals 4 | . 4 . Fabricators . | . . . Repair Stations . | . . . Recycling Units 1 | . 1 . Scanalyzers . | . . . Garrison Access . | . . . Total Hacks 15 | . 12 3 Successful 15 | . 12 3 Failed . | . . . Catastrophic . | . . . Database Lockouts . | . . . Manual . | . . . Terminals 7 | . 7 . Fabricators . | . . . Repair Stations . | . . . Recycling Units 5 | . 5 . Scanalyzers . | . . . Garrison Access . | . . . Terminal Hacks 10 | . 7 3 Record 2 | . 1 1 Prototype ID Bank 1 | . 1 . Open Door 1 | . . 1 Emergency Access Points 1 | . 1 . Alert Level 1 | . 1 . Locate Traps 1 | . 1 . Dispatch Records 1 | . 1 . Hauler Manifests 1 | . 1 . Release Object 1 | . . 1 Fabricator Hacks . | . . . Repair Station Hacks . | . . . Recycling Unit Hacks 5 | . 5 . Recycle Component 1 | . 1 . Process 2 | . 2 . Report Inventory 2 | . 2 . Scanalyzer . | . . . Garrison Access Hacks . | . . . Unauthorized Hacks . | . . . Terminals . | . . . Fabricators . | . . . Repair Stations . | . . . Recycling Units . | . . . Scanalyzers . | . . . Garrison Access . | . . . Data Cores Recovered . | . . . Used . | . . . Hacking Detections 1 | . 1 . Full Trace Events . | . . . Feedback Events . | . . . Feedback Blocked . | . . . Robot Schematics Acquired . | . . . Robots Built . | . . . Authchips . | . . . Time . | . . . Total Robot Build Rating . | . . . Part Schematics Acquired . | . . . Parts Built . | . . . Authchips . | . . . Time . | . . . Total Part Build Rating . | . . . Parts Repaired . | . . . Time . | . . . Parts Recycled 1 | . 1 . Recycled Matter 121 | . 121 . Retrieved Matter . | . . . Retrieved Components . | . . . Parts Scanalyzed . | . . . Part Schematics Acquired . | . . . Parts Damaged . | . . . Bothacking | -11 -10 -10 ------------ Run | Yrd Mat Sub Used RIF Installer . | . . . Robots Hacked . | . . . Non-combat . | . . . Combat . | . . . Robot Hacks Applied . | . . . Relay Couplers Released . | . . . Fabnet Peak Effective % . | . . . Robots Rewired . | . . . Allies Hacked . | . . . Hacks Repelled . | . . . Allies | -11 -10 -10 -------- Run | Yrd Mat Sub Total Allies . | . . . Largest Group . | . . . Highest-Rated Group . | . . . Highest-Rated Ally . | . . . Total Orders . | . . . Ally Attacks . | . . . Total Damage . | . . . Kills . | . . . Allies Corrupted . | . . . Allies Melted . | . . . Intel | -11 -10 -10 ------- Run | Yrd Mat Sub Active Infowar (turns) 1461 | . 695 766 Optics 269 | . . 269 Terrain 1192 | . 695 497 Robot Analysis Total . | . . . Derelict Logs Recovered . | . . . Drone Launches . | . . . Drone Recoveries . | . . . Exploration | -11 -10 -10 ------------- Run | Yrd Mat Sub Turns Passed 1751 | 89 896 766 Spaces Moved 1082 | 69 501 512 Core 15 | 14 1 . Treads . | . . . Legs 697 | 55 500 142 Wheels 370 | . . 370 Hover . | . . . Flight . | . . . Fastest Speed 50 | 50 120 110 Average Speed 133 | 105 139 132 Slowest Speed 190 | 120 190 190 Overloaded Moves . | . . . Propulsion Burnouts . | . . . Robots Hopped . | . . . Potential Cave-ins 1 | . . 1 Cave-ins Triggered . | . . . Exploration Rate (%) 35 | 6 77 23 Regions Visited 2 Branch Regions 1 Pre-discovered Areas 1 | . . 1 Known Exits Taken . | . . . Unknown Exits Taken 2 | 1 1 . Scrap Searched . | . . . Spaces Dug . | . . . Terrain Destroyed . | . . . Melee . | . . . Projectile . | . . . AOE . | . . . Terrain Rammed . | . . . Walls Destroyed . | . . . Machines Disabled . | . . . Actions | -11 -10 -10 --------- Run | Yrd Mat Sub Total 1260 | 80 603 577 Wait 34 | . 16 18 Move 1080 | 68 500 512 Hop . | . . . Pick Up 30 | 5 15 10 Fast Attach 18 | 6 7 5 Attach 4 | . 3 1 Detach 1 | . . 1 Swap 4 | . 2 2 Drop 22 | . 9 13 Fire 65 | 1 50 14 Melee . | . . . Ram . | . . . Kick 1 | . 1 . Crush . | . . . Escape Stasis . | . . . Rewire . | . . . Trap . | . . . Miscellaneous 1 | . . 1 Route ------- -11/Scrapyard -10/Materials (discovered 5 exits: [*Mat x3] / [*Min] / *Sub) -10/Subcaves History --------- Turn | Location | Event 2 | -11/Scrapyard | Met Revision 17 67 | -11/Scrapyard | Discovered new exit (range 8) 90 | -11/Scrapyard | Entered Materials 312 | -10/Materials | Build established: Mutant 396 | -10/Materials | Core integrity fell below 50% 429 | -10/Materials | Discovered new exit (range 3) 521 | -10/Materials | Discovered new exit (range 14) 672 | -10/Materials | Discovered new exit (range 13) 675 | -10/Materials | Discovered new exit (range 16) 701 | -10/Materials | Build established: Scavenger-Mutant 903 | -10/Materials | Discovered new exit (range 6) 986 | -10/Materials | Entered Subcaves 987 | -10/Subcaves | Approached by a straggling Scientist 1253 | -10/Subcaves | Ambushed by swarm of Subdwellers 1256 | -10/Subcaves | Ambushed by Subdwellers from Twisted Machinery 1256 | -10/Subcaves | Ambushed by Subdwellers from Twisted Machinery 1261 | -10/Subcaves | A swath of the cavern ceiling suddenly collapsed 1281 | -10/Subcaves | Core integrity fell below 20% 1307 | -10/Subcaves | Lost 3 allies 1639 | -10/Subcaves | Released subatomizers from SUBCON Basin 1724 | -10/Subcaves | Learned location of Zion (-6) 1724 | -10/Subcaves | Met a Zionite searching for "candidates" 1752 | -10/Subcaves | Destroyed by Y-45 Defender with Heavy Assault Rifle Last Messages --------------- nuisance in their natural Subcaves environment where a certain balance has been achieved, there is a high probability that sudden introduction into previously unexposed areas could cause more extreme side effects. Take all precautions to prevent this from happening. >>Release Inventory Accessing inventory controls... Collection purity confirmed 100%... Ejecting SUBCON Basin... Delivery behind schedule, handle with care! Released subatomizers from SUBCON Basin. Connecting with SUBCON Basin Controls... 9H-3DB(z): "Hey you! It's really dangerous down here, I feel that you could die at any moment. For your health and safety might I suggest a trip to Zion?" World map updated: -6/Zion. HV Slug penetrates Wall. HV Slug penetrates S-10 Pest. S-10 Pest suffers critical hit (Destroy). S-10 Pest destroyed. Map ----- +----------------------------------------------------+ | ????????????????????????????????## ### #?# ## | | ?????????????????????????????????#"" ## ### # | | ??????????????????????????????#??##" ### ### " # | | ??????????????????????????????? """""""" ## "" ## | | ??????????????????????????????"""""""""" "" ## | | ??????????????????????????????? #"#"" ""% ##? | | ??????????????????????????????"""#####"" """* ##? | | ?????????????????????? "? "??## "%%&& ## | | ??????????????????? ????"??# ####[[ # | | ?????????????????? ??????##" ##??## | | ?????????????????? ?"???## ""##???# | | ?????????????????? "????## ###????# | | ???????????????????? #???##" ###?????# | | ????????????????????# ???##" """"## ## | | ??????????????????#?# ??## "" ### ## | | ????????????????#???# ??# "" "" ?# # | | ????????????????????# ?## """#### | | ???????????????????#? ??## ###??? | | ???????????????????#??# ### ##?????? # # | | ??????????????????## ?# # # #????????## ### #? | | ????????????"?????# # "#?????????#???###? | | ??????????????????#" # ###????????????????? | | ??????????????????#"""" h#####??????????????????? | | ??????????????????# """ ##?????????????????????? | | ??????????????????####" #?????????????????????? | | ?????????????????????## @##?????????????????????? | | ?????????????????????# Y%#??????????????????????? | | ?????????????? ?????????????????????? | | ?????????? ## # % ???????????????????? | | ???????????????# ######; ???#?????????????? | | ???????????????# ??????### #????????????????? | | ??????????????# ?????????? #????????????????? | | ??????????????##???????????# ###????????????????? | | ????????????????????????????###??????????????????? | | ?????????????????????????????????????????????????? | | ???????????????????????????????#?????????????????? | | ?????????????????????????????????????????????????? | | ?????????????????????????????????????????????????? | | ?????????????????????????????????????????????????? | | ?????????????????????????????????????????????????? | | ?????????????????????????????????????????????????? | | ?????????????????????????????????????????????????? | | ?????????????????????????????????????????????????? | | ?????????????????????????????????????????????????? | | ?????????????????????????????????????????????????? | | ?????????????????????????????????????????????????? | | ?????????????????????????????????????????????????? | | ?????????????????????????????????????????????????? | | ?????????????????????????????????????????????????? | | ?????????????????????????????????????????????????? | +----------------------------------------------------+ Best States ------------- Heat Dissipation 35 Energy Generation 15 Energy Capacity 250 Matter Stores 336 Matter Capacity 350 Sight Range 21 Terrain Scan Range 14 Terrain Scan Density 10 Evasion (%) 55 Item Schematics ----------------- None Robot Schematics ------------------ None Fabricated ------------ Nothing Repaired ---------- Nothing Alien Tech Used ----------------- None Achievements -------------- None Challenges ------------ None Game ------ Seed TargetingFusionLoader Manual? 0 Play Time 00:47:09 Cumulative 14.4 hours Start 2025.10.03 @ 15:56:41 End 2025.10.03 @ 19:53:08 Sessions 4 Manual Loads 0 Difficulty Rogue Special Mode None Game No. 7 Rogue 7 Adventurer 0 Explorer 0 Win Type - Total 0 Types 0/0/0/0/0/0/0/0/0/0 Lore% 4 Gallery% 10 Achievement% 12 Wizard Run 0 Options --------- Layout 1 ASCII 0 Keyboard 1 Movement Vi Keybinds 0 Fullscreen 1 Font 28/CherryShadow Map View 59x39 Zoom Use 0% Tactical HUD 0 Map Filters NONE Filters NONE Steam 1 RUN: 5903faec-0bda-4a86-b758-a260f960ec8c